Workbook

Sheet Sheet1
C1: January | F1: February | I1: March | L1: April | O1: May | R1: June | U1: July | X1: August | AA1: September | AD1: October | AG1: November | AJ1: December | AM1: Total Number of Individuals Assisted Who Found Jobs | AN1: Total Number of Reemployment Assistance Claimants Assisted Who Found Jobs
C2: Total Number of Individuals Assisted Who Found Jobs | D2: Number of Reemployment Assistance Claimants Assisted Who Found Jobs | E2: Monthly Composite Ranking | F2: Total Number of Individuals Assisted Who Found Jobs | G2: Number of Reemployment Assistance Claimants Assisted Who Found Jobs | H2: Monthly Composite Ranking | I2: Total Number of Individuals Assisted Who Found Jobs | J2: Number of Reemployment Assistance Claimants Assisted Who Found Jobs | K2: Monthly Composite Ranking | L2: Total Number of Individuals Assisted Who Found Jobs | M2: Number of Reemployment Assistance Claimants Assisted Who Found Jobs | N2: Monthly Composite Ranking | O2: Total Number of Individuals Assisted Who Found Jobs | P2: Number of Reemployment Assistance Claimants Assisted Who Found Jobs | Q2: Monthly Composite Ranking | R2: Total Number of Individuals Assisted Who Found Jobs | S2: Number of Reemployment Assistance Claimants Assisted Who Found Jobs | T2: Monthly Composite Ranking | U2: Total Number of Individuals Assisted Who Found Jobs | V2: Number of Reemployment Assistance Claimants Assisted Who Found Jobs | W2: Monthly Composite Ranking | X2: Total Number of Individuals Assisted Who Found Jobs | Y2: Number of Reemployment Assistance Claimants Assisted Who Found Jobs | Z2: Monthly Composite Ranking | AA2: Total Number of Individuals Assisted Who Found Jobs | AB2: Number of Reemployment Assistance Claimants Assisted Who Found Jobs | AC2: Monthly Composite Ranking | AD2: Total Number of Individuals Assisted Who Found Jobs | AE2: Number of Reemployment Assistance Claimants Assisted Who Found Jobs | AF2: Monthly Composite Ranking | AG2: Total Number of Individuals Assisted Who Found Jobs | AH2: Number of Reemployment Assistance Claimants Assisted Who Found Jobs | AI2: Monthly Composite Ranking | AJ2: Total Number of Individuals Assisted Who Found Jobs | AK2: Number of Reemployment Assistance Claimants Assisted Who Found Jobs | AL2: Monthly Composite Ranking
A3: 1 | B3: CareerSource Escarosa | C3: 572 | D3: 104 | E3: 21 | F3: 618 | G3: 111 | H3: 23 | I3: 630 | J3: 134 | K3: 20 | AM3: =(AJ3+AG3+AD3+AA3+X3+U3+R3+O3+L3+I3+F3+C3) -> 1820 | AN3: =(AK3+AH3+AE3+AB3+Y3+V3+S3+P3+M3+J3+G3+D3) -> 349
A4: 2 | B4: CareerSource Okaloosa Walton | C4: 433 | D4: 69 | E4: 13 | F4: 529 | G4: 103 | H4: 9 | I4: 572 | J4: 116 | K4: 8 | AM4: =(AJ4+AG4+AD4+AA4+X4+U4+R4+O4+L4+I4+F4+C4) -> 1534 | AN4: =(AK4+AH4+AE4+AB4+Y4+V4+S4+P4+M4+J4+G4+D4) -> 288
A5: 3 | B5: CareerSource Chipola | C5: 223 | D5: 24 | E5: 10 | F5: 229 | G5: 28 | H5: 10 | I5: 267 | J5: 23 | K5: 9 | AM5: =(AJ5+AG5+AD5+AA5+X5+U5+R5+O5+L5+I5+F5+C5) -> 719 | AN5: 75
A6: 4 | B6: CareerSource Gulf Coast | C6: 716 | D6: 98 | E6: 1 | F6: 884 | G6: 150 | H6: 1 | I6: 764 | J6: 166 | K6: 1 | AM6: 2364 | AN6: 414
A7: 5 | B7: CareerSource Capital Region | C7: 564 | D7: 77 | E7: 18 | F7: 675 | G7: 94 | H7: 16 | I7: 650 | J7: 97 | K7: 15 | AM7: 1889 | AN7: 268
A8: 6 | B8: CareerSource North Florida | C8: 221 | D8: 33 | E8: 8 | F8: 268 | G8: 50 | H8: 3 | I8: 385 | J8: 41 | K8: 2 | AM8: 874 | AN8: 124
A9: 7 | B9: CareerSource Florida Crown | C9: 259 | D9: 37 | E9: 4 | F9: 264 | G9: 32 | H9: 6 | I9: 316 | J9: 40 | K9: 4 | AM9: 839 | AN9: 109
A10: 8 | B10: CareerSource Northeast Florida | C10: 1490 | D10: 387 | E10: 24 | F10: 1659 | G10: 470 | H10: 24 | I10: 1873 | J10: 509 | K10: 23 | AM10: 5022 | AN10: 1366
A11: 9 | B11: CareerSource North Central Florida | C11: 610 | D11: 62 | E11: 11 | F11: 615 | G11: 62 | H11: 13 | I11: 608 | J11: 68 | K11: 12 | AM11: 1833 | AN11: 192
A12: 10 | B12: CareerSource Citrus Levy Marion | C12: 784 | D12: 126 | E12: 15 | F12: 952 | G12: 142 | H12: 14 | I12: 919 | J12: 148 | K12: 13 | AM12: 2655 | AN12: 416
A13: 11 | B13: CareerSource Flagler Volusia | C13: 1383 | D13: 264 | E13: 5 | F13: 1432 | G13: 307 | H13: 5 | I13: 1477 | J13: 275 | K13: 7 | AM13: 4292 | AN13: 846
A14: 12 | B14: CareerSource Central Florida | C14: 2693 | D14: 736 | E14: 22 | F14: 3387 | G14: 916 | H14: 19 | I14: 3103 | J14: 827 | K14: 22 | AM14: 9183 | AN14: 2479
A15: 13 | B15: CareerSource Brevard | C15: 1079 | D15: 187 | E15: 12 | F15: 1182 | G15: 222 | H15: 11 | I15: 1313 | J15: 224 | K15: 10 | AM15: 3574 | AN15: 633
A16: 14 | B16: CareerSource Pinellas | C16: 2367 | D16: 325 | E16: 3 | F16: 2358 | G16: 406 | H16: 4 | I16: 2653 | J16: 376 | K16: 5 | AM16: 7378 | AN16: 1107
A17: 15 | B17: CareerSource Tampa Bay | C17: 3567 | D17: 525 | E17: 2 | F17: 3686 | G17: 537 | H17: 2 | I17: 4667 | J17: 544 | K17: 3 | AM17: 11920 | AN17: 1606
A18: 16 | B18: CareerSource Pasco Hernando | C18: 1234 | D18: 209 | E18: 6 | F18: 1264 | G18: 238 | H18: 7 | I18: 1378 | J18: 293 | K18: 6 | AM18: 3876 | AN18: 740
A19: 17 | B19: CareerSource Polk | C19: 969 | D19: 174 | E19: 16 | F19: 1068 | G19: 202 | H19: 15 | I19: 977 | J19: 163 | K19: 17 | AM19: 3014 | AN19: 539
A20: 18 | B20: CareerSource Suncoast | C20: 1146 | D20: 151 | E20: 14 | F20: 1085 | G20: 208 | H20: 17 | I20: 1046 | J20: 188 | K20: 16 | AM20: 3277 | AN20: 547
A21: 19 | B21: CareerSource Heartland | C21: 346 | D21: 29 | E21: 9 | F21: 351 | G21: 28 | H21: 12 | I21: 306 | J21: 31 | K21: 14 | AM21: 1003 | AN21: 88
A22: 20 | B22: CareerSource Research Coast | C22: 913 | D22: 182 | E22: 17 | F22: 944 | G22: 184 | H22: 18 | I22: 846 | J22: 201 | K22: 19 | AM22: 2703 | AN22: 567
A23: 21 | B23: CareerSource Palm Beach County | C23: 1464 | D23: 382 | E23: 23 | F23: 1689 | G23: 513 | H23: 21 | I23: 1700 | J23: 482 | K23: 21 | AM23: 4853 | AN23: 1377
A24: 22 | B24: CareerSource Broward | C24: 2689 | D24: 529 | E24: 19 | F24: 2940 | G24: 639 | H24: 20 | I24: 2811 | J24: 662 | K24: 18 | AM24: 8440 | AN24: 1830
A25: 23 | B25: CareerSource South Florida | C25: 6248 | D25: 849 | E25: 7 | F25: 6299 | G25: 1013 | H25: 8 | I25: 6704 | J25: 942 | K25: 11 | AM25: 19251 | AN25: 2804
A26: 24 | B26: CareerSource Southwest Florida | C26: 1591 | D26: 240 | E26: 20 | F26: 1596 | G26: 289 | H26: 22 | I26: 1492 | J26: 244 | K26: 24 | AM26: =(AJ26+AG26+AD26+AA26+X26+U26+R26+O26+L26+I26+F26+C26) -> 4679 | AN26: 773
C27: =SUM(C3:C26) -> 33561 | D27: =SUM(D3:D26) -> 5799 | F27: =SUM(F3:F26) -> 35974 | G27: =SUM(G3:G26) -> 6944 | I27: =SUM(I3:I26) -> 37457 | J27: =SUM(J3:J26) -> 6794 | L27: =SUM(L3:L26) -> 0 | M27: =SUM(M3:M26) -> 0 | O27: =SUM(O3:O26) -> 0 | P27: =SUM(P3:P26) -> 0 | R27: =SUM(R3:R26) -> 0 | S27: =SUM(S3:S26) -> 0 | U27: =SUM(U3:U26) -> 0 | V27: =SUM(V3:V26) -> 0 | X27: =SUM(X3:X26) -> 0 | Y27: =SUM(Y3:Y26) -> 0 | AA27: =SUM(AA3:AA26) -> 0 | AB27: =SUM(AB3:AB26) -> 0 | AD27: =SUM(AD3:AD26) -> 0 | AE27: =SUM(AE3:AE26) -> 0 | AG27: =SUM(AG3:AG26) -> 0 | AH27: =SUM(AH3:AH26) -> 0 | AJ27: =SUM(AJ3:AJ26) -> 0 | AK27: =SUM(AK3:AK26) -> 0 | AM27: =SUM(AM3:AM26) -> 106992 | AN27: =SUM(AN3:AN26) -> 19537

Sheet Sheet2
C1: January
C2: Total Number of Individuals Assisted Who Found Jobs | D2: Number of Reemployment Assistance Claimants Assisted Who Found Jobs | E2: Monthly Composite Ranking | H2: # of Individuals Placed in Jobs in February 2015 | I2: # of RA Claimants Placed into Jobs in February 2015 | J2: monthly ranking
A3: 1 | B3: CareerSource Escarosa | C3: 572 | D3: 104 | E3: 21 | H3: 618 | I3: 111 | J3: 23
A4: 2 | B4: CareerSource Okaloosa Walton | C4: 433 | D4: 69 | E4: 13 | H4: 529 | I4: 103 | J4: 9
A5: 3 | B5: CareerSource Chipola | C5: 223 | D5: 24 | E5: 10 | H5: 229 | I5: 28 | J5: 10
A6: 4 | B6: CareerSource Gulf Coast | C6: 716 | D6: 98 | E6: 1 | H6: 884 | I6: 150 | J6: 1
A7: 5 | B7: CareerSource Capital Region | C7: 564 | D7: 77 | E7: 18 | H7: 675 | I7: 94 | J7: 16
A8: 6 | B8: CareerSource North Florida | C8: 221 | D8: 33 | E8: 8 | H8: 268 | I8: 50 | J8: 3
A9: 7 | B9: CareerSource Florida Crown | C9: 259 | D9: 37 | E9: 4 | H9: 264 | I9: 32 | J9: 6
A10: 8 | B10: CareerSource Northeast Florida | C10: 1490 | D10: 387 | E10: 24 | H10: 1659 | I10: 470 | J10: 24
A11: 9 | B11: CareerSource North Central Florida | C11: 610 | D11: 62 | E11: 11 | H11: 615 | I11: 62 | J11: 13
A12: 10 | B12: CareerSource Citrus Levy Marion | C12: 784 | D12: 126 | E12: 15 | H12: 952 | I12: 142 | J12: 14
A13: 11 | B13: CareerSource Flagler Volusia | C13: 1383 | D13: 264 | E13: 5 | H13: 1432 | I13: 307 | J13: 5
A14: 12 | B14: CareerSource Central Florida | C14: 2693 | D14: 736 | E14: 22 | H14: 3387 | I14: 916 | J14: 19
A15: 13 | B15: CareerSource Brevard | C15: 1079 | D15: 187 | E15: 12 | H15: 1182 | I15: 222 | J15: 11
A16: 14 | B16: CareerSource Pinellas | C16: 2367 | D16: 325 | E16: 3 | H16: 2358 | I16: 406 | J16: 4
A17: 15 | B17: CareerSource Tampa Bay | C17: 3567 | D17: 525 | E17: 2 | H17: 3686 | I17: 537 | J17: 2
A18: 16 | B18: CareerSource Pasco Hernando | C18: 1234 | D18: 209 | E18: 6 | H18: 1264 | I18: 238 | J18: 7
A19: 17 | B19: CareerSource Polk | C19: 969 | D19: 174 | E19: 16 | H19: 1068 | I19: 202 | J19: 15
A20: 18 | B20: CareerSource Suncoast | C20: 1146 | D20: 151 | E20: 14 | H20: 1085 | I20: 208 | J20: 17
A21: 19 | B21: CareerSource Heartland | C21: 346 | D21: 29 | E21: 9 | H21: 351 | I21: 28 | J21: 12
A22: 20 | B22: CareerSource Research Coast | C22: 913 | D22: 182 | E22: 17 | H22: 944 | I22: 184 | J22: 18
A23: 21 | B23: CareerSource Palm Beach County | C23: 1464 | D23: 382 | E23: 23 | H23: 1689 | I23: 513 | J23: 21
A24: 22 | B24: CareerSource Broward | C24: 2689 | D24: 529 | E24: 19 | H24: 2940 | I24: 639 | J24: 20
A25: 23 | B25: CareerSource South Florida | C25: 6248 | D25: 849 | E25: 7 | H25: 6299 | I25: 1013 | J25: 8
A26: 24 | B26: CareerSource Southwest Florida | C26: 1591 | D26: 240 | E26: 20 | H26: 1596 | I26: 289 | J26: 22
C27: =SUM(C3:C26) -> 33561 | D27: =SUM(D3:D26) -> 5799
H28: 35974 | I28: 6944

Sheet Sheet3
